lending/lending_fUSD_20240401
["ID","MTS","AMOUNT","RATE_DAILY","PERIOD"]
[321177856,1711944824727,-170.76,0.00033652,2]
[321177857,1711944824748,-400.0,0.00035,3]
[321177858,1711944824767,-1276.87458992,0.00035816,4]
[321177859,1711944824790,-150.0,0.00035893,2]
[321177860,1711944824810,-656.993192,0.00035893,4]
[321177861,1711944824830,-150218.63169863,0.00035893,2]
[321177862,1711944824850,-23344.02642312,0.00035894,4]
[321177863,1711944824871,-7130.8646,0.00035895,2]
[321177864,1711944828502,832.01635104,0.00032996,4]
[321177865,1711944845834,1163.4378382,0.00035816,4]
[321177866,1711944866218,1520.20192703,0.00032996,4]
[321177867,1711944876905,397.35416772,0.00032996,2]
[321177868,1711944880208,534.57715425,0.00032996,4]
[321177869,1711944890908,320.41782298,0.00032996,2]
[321177870,1711944921499,2213.4674178,0.00032996,4]
[321177871,1711944928354,176.99,0.00031962,2]
[321177872,1711944951516,31176.51156166,0.00042855,30]
[321177882,1711945220167,-461.4,0.00036465,2]
[321177883,1711945220190,-450.0,0.00037,3]
[321177884,1711945220210,-209.31901399,0.000377,2]
[321177885,1711945220231,-156.3,0.00037808,2]
[321177886,1711945220252,-155.79,0.00037808,2]
[321177887,1711945220274,-150.0,0.0003866,2]
[321177888,1711945220295,-157.99,0.0003867,2]
[321177889,1711945220317,-461.4,0.00038729,2]
[321177890,1711945220337,-164.07,0.00038813,2]
[321177891,1711945220358,-174.56,0.00038897,2]
[321177892,1711945220379,-250.0,0.00039157,2]
[321177893,1711945220402,-162.68,0.00039157,15]
[321177894,1711945220422,-171.24,0.0003925,2]
[321177895,1711945220442,-250.0,0.00039342,2]
[321177896,1711945220462,-2513.24,0.00039559,120]
[321177897,1711945220483,-150.99,0.00039559,10]
[321177898,1711945220504,-2334.39,0.00039563,2]
[321177899,1711945220535,-252.8179403,0.00039597,4]
[321177900,1711945220563,-250.0,0.00039688,112]
[321177901,1711945220589,-400.0,0.00039895,5]
[321177902,1711945220620,-276.0,0.00039895,3]
[321177903,1711945220648,-6056.3058138,0.00039896,2]
[321177904,1711945220674,-150.0,0.00039896,5]
[321177905,1711945220698,-3512.59114764,0.00039897,2]
[321177906,1711945220723,-23900.0,0.00039952,2]
[321177907,1711945220748,-726.63,0.00039952,15]
[321177908,1711945220771,-2292.69004989,0.00039976,2]
[321177909,1711945220794,-5687.25,0.00039986,10]
[321177910,1711945220815,-172.27,0.0003999,2]
[321177911,1711945220840,-519.3163752,0.00039994,4]
[321177912,1711945220863,-340.59863762,0.00039994,4]
[321177913,1711945220887,-2000.0,0.00039995,2]
[321177914,1711945220910,-155.87527883,0.00039996,4]
[321177915,1711945220934,-90181.01520783,0.00039996,2]
[321177916,1711945220958,-187.24798921,0.00039996,4]
[321177917,1711945220979,-155.94829632,0.00039997,4]
[321177918,1711945221001,-2000.0,0.00039997,2]
[321177919,1711945221026,-219.43897485,0.00039997,4]
[321177920,1711945221050,-204.66769112,0.00039997,4]
[321177921,1711945221075,-155.46113651,0.00039997,4]
[321177922,1711945221100,-34079.40404795,0.00039997,4]
[321177923,1711945221130,-1097.16822668,0.00039997,4]
[321177924,1711945221153,-157.12716268,0.00039997,4]
[321177925,1711945221178,-155.6295641,0.00039997,4]
[321177926,1711945221203,-166.86985156,0.00039997,4]
[321177927,1711945221231,-554.6523772,0.00039999,31]
[321177928,1711945221256,-5753.24265028,0.0004,4]
[321177929,1711945221281,-22080.58499123,0.0004,4]
[321177930,1711945221305,-170426.21260905,0.0004,30]
[321177931,1711945221602,5687.25,0.00039986,10]
[321177932,1711945222401,151.0,0.0004,14]
[321177933,1711945224071,156.980298,0.0004,14]
[321177934,1711945239164,-200.0,0.00040402,2]
[321177935,1711945239189,-1050.15,0.00040421,2]
[321177936,1711945239211,-461.4,0.00040993,2]
[321177937,1711945239232,-172.46,0.00041017,2]
[321177938,1711945239253,-217.79,0.00041096,2]
[321177939,1711945239273,-179.0,0.00041096,2]
[321177940,1711945239293,-170.0,0.00041726,2]
[321177941,1711945239313,-2010.8,0.00041975,2]
[321177942,1711945239334,-560.0,0.00042559,5]
[321177943,1711945239356,-202.12441557,0.00042644,2]
[321177944,1711945239377,-180.0,0.00042764,2]
[321177945,1711945239398,-499.99,0.00042764,2]
[321177946,1711945239419,-2042.48,0.00042764,2]
[321177947,1711945239439,-1200.0,0.00042822,2]
[321177948,1711945239460,-6056.30581378,0.00042852,2]
[321177949,1711945239481,-3512.59114757,0.00042853,2]
[321177950,1711945239501,-186.57307901,0.00042853,30]
[321177951,1711945239523,-154.525705,0.00042855,14]
[321177952,1711945239544,-151.0,0.00042855,14]
[321177953,1711945239564,-151.0,0.00042855,14]
[321177954,1711945239584,-203.940753,0.00042855,14]
[321177955,1711945239606,-304.517365,0.00042855,14]
[321177956,1711945239627,-304.517365,0.00042855,14]
[321177957,1711945239648,-835.420405,0.00042855,14]
[321177958,1711945239668,-835.420405,0.00042855,14]
[321177959,1711945239692,-151.0,0.00042856,14]
[321177960,1711945239712,-155.48213,0.00042856,14]
[321177961,1711945239732,-151.0,0.00042856,14]
[321177962,1711945239753,-159.307108,0.00042856,14]
[321177963,1711945239774,-151.0,0.00042856,14]
[321177964,1711945239796,-7365.02922171,0.00042857,4]
[321177965,1711945239817,-151.0,0.00042858,14]
[321177966,1711945239838,-151.0,0.00042858,14]
[321177967,1711945239859,-151.0,0.00042858,14]
[321177968,1711945239879,-9943.0,0.00043087,2]
[321177969,1711945239901,-461.4,0.00043256,2]
[321177970,1711945239922,-166.89,0.00043344,2]
[321177971,1711945239946,-1592.21,0.00044355,120]
[321177972,1711945241184,217.365264,0.0004,14]
[321177973,1711945241673,217.365264,0.00042858,14]
[321177974,1711945245712,217.365264,0.0004,14]
[321177975,1711945245940,5753.24265028,0.00042857,4]
[321177976,1711945245995,217.365264,0.00042858,14]
[321177977,1711945252097,151.0,0.0004,7]
[321177978,1711945252388,151.0,0.00042858,7]
[321177979,1711945462901,-156.05,0.00037808,2]
[321177980,1711945462922,-175.5235,0.00042757,2]
[321177981,1711945462943,-153.8486196,0.00042757,2]
[321177982,1711945462964,-2108.17438483,0.00042857,4]
[321177983,1711945479455,-153.84861958,0.00044252,2]
[321177984,1711945479477,-162.68,0.00045027,15]
[321177985,1711945479499,-200.0,0.00045452,2]
[321177986,1711945479520,-153.84861958,0.00045747,2]
[321177987,1711945479541,-177.58,0.00045798,2]
[321177988,1711945498400,-153.84861958,0.00047242,2]
[321177989,1711945498422,-201.0,0.00047773,2]
[321177990,1711945498445,-166.89,0.00047943,2]
[321177991,1711945498466,-10998.54,0.00048183,2]
[321177992,1711945498488,-153.84861958,0.00048737,2]
[321177993,1711945498510,-1035.0,0.00048944,117]
[321177998,1711945708356,-2500.0,0.00042854,4]
[321178001,1711945831821,-1626.80364103,0.00042854,2]
[321178002,1711945831831,-248.0,0.00042855,5]
[321178003,1711945831841,-1736.09951575,0.0004286,2]
[321178004,1711945831850,-67627.12598584,0.0004286,2]
[321178005,1711945831860,-47659.53037738,0.0004286,10]
[321178006,1711945831870,-151.0,0.00048,120]
[321178007,1711945831879,-150.0,0.00048443,2]
[321178008,1711945831888,-334.93835951,0.00048944,120]
[321178009,1711945831897,-369.12,0.00049248,2]
[321178010,1711945831906,-1008.13673531,0.00049553,10]
[321178011,1711945831915,-838.06132481,0.0005,2]
[321178012,1711945831924,-547.37,0.0005,5]
[321178013,1711945831933,-156.3,0.00050205,2]
[321178014,1711945831942,-153.84861958,0.00050233,2]
[321178015,1711945831951,-200.0,0.00050503,120]
[321178016,1711945831960,-525.07,0.00051239,2]
[321178017,1711945831969,-840.0,0.00051507,120]
[321178018,1711945831979,-369.12,0.00051512,2]
[321178019,1711945831987,-153.84861958,0.00051728,2]
[321178020,1711945831997,-155.79,0.00051977,2]
[321178021,1711945832006,-1326.84,0.00052292,120]
[321178022,1711945832015,-171.24,0.00052471,2]
[321178023,1711945832024,-151.87,0.00052788,2]
[321178024,1711945832034,-625.08920396,0.00052791,4]
[321178025,1711945832053,-2017.8,0.00052822,10]
[321178026,1711945832063,-3455.2,0.00052822,10]
[321178027,1711945832072,-2879.33,0.00052822,10]
[321178028,1711945832081,-162.68,0.00052832,120]
[321178029,1711945832090,-495.24,0.00053183,2]
[321178030,1711945832099,-153.84861958,0.00053223,2]
[321178031,1711945832109,-151.0,0.0005326,120]
[321178032,1711945832118,-4336.5400717,0.00053353,4]
[321178033,1711945832128,-369.12,0.00053776,2]
[321178034,1711945832137,-6087.09750886,0.000541,7]
[321178035,1711945832146,-156.5,0.00054338,2]
[321178036,1711945832156,-2810.07291811,0.00054618,2]
[321178037,1711945832165,-151.0,0.00054676,120]
[321178038,1711945832175,-217.365264,0.00054676,120]
[321178039,1711945832185,-217.365264,0.00054676,120]
[321178040,1711945832194,-151.0,0.00054676,7]
[321178041,1711945832203,-4845.04465106,0.00054694,2]
[321178042,1711945832213,-153.84861958,0.00054718,2]
[321178043,1711945832222,-1000.0,0.00054726,11]
[321178044,1711945832232,-172.27,0.00054784,30]
[321178045,1711945832241,-508.35309951,0.00054794,120]
[321178046,1711945832251,-542.28084798,0.00054794,120]
[321178047,1711945832260,-517.36760841,0.00054794,120]
[321178048,1711945832270,-500.0,0.00054794,120]
[321178049,1711945832279,-514.80383064,0.00054794,120]
[321178050,1711945832288,-531.17555853,0.00054794,120]
[321178051,1711945832298,-522.58666469,0.00054794,120]
[321178052,1711945832307,-500.0,0.00054794,120]
[321178053,1711945832317,-500.0,0.00054794,120]
[321178054,1711945832326,-500.0,0.00054794,120]
[321178055,1711945832335,-160.165916,0.00054794,120]
[321178056,1711945832344,-151.0,0.00054794,120]
[321178057,1711945832354,-152.895855,0.00054794,120]
[321178058,1711945832363,-277.04359958,0.00054794,30]
[321178059,1711945832372,-627.98,0.00054794,120]
[321178060,1711945832382,-460.0,0.00054794,120]
[321178061,1711945832392,-566.54455645,0.00054794,120]
[321178062,1711945832402,-500.0,0.00054794,120]
[321178063,1711945832411,-550.36412091,0.00054794,120]
[321178064,1711945832420,-500.0,0.00054794,120]
[321178065,1711945832430,-500.0,0.00054794,120]
[321178066,1711945832439,-151.0,0.00054794,120]
[321178067,1711945832448,-151.0,0.00054794,120]
[321178068,1711945832457,-500.0,0.00054794,120]
[321178069,1711945832466,-500.0,0.00054794,120]
[321178070,1711945832476,-217.365264,0.00054794,120]
[321178071,1711945832485,-217.365264,0.00054794,120]
[321178072,1711945832494,-217.365264,0.00054794,120]
[321178073,1711945832503,-217.365264,0.00054794,120]
[321178074,1711945832512,-542.12942392,0.00054794,120]
[321178075,1711945832521,-500.0,0.00054794,120]
[321178076,1711945832530,-155.275793,0.00054794,7]
[321178077,1711945832539,-154.31935639,0.00054794,2]
[321178078,1711945832548,-500.0,0.00054794,120]
[321178079,1711945832557,-500.0,0.00054794,120]
[321178080,1711945832566,-500.0,0.00054794,120]
[321178081,1711945832576,-523.27442247,0.00054794,120]
[321178082,1711945832585,-500.0,0.00054794,120]
[321178083,1711945832595,-500.0,0.00054794,120]
[321178084,1711945832604,-500.0,0.00054794,120]
[321178085,1711945832613,-500.0,0.00054794,120]
[321178086,1711945832622,-500.0,0.00054794,120]
[321178087,1711945832631,-297.88559189,0.00054794,120]
[321178088,1711945832641,-500.0,0.00054794,120]
[321178089,1711945832650,-500.0,0.00054794,120]
[321178090,1711945832659,-261.53788241,0.00054794,120]
[321178091,1711945832669,-500.0,0.00054794,120]
[321178092,1711945832678,-500.0,0.00054794,120]
[321178093,1711945832687,-522.90993986,0.00054794,120]
[321178094,1711945832696,-500.0,0.00054794,120]
[321178095,1711945832707,-312.41281742,0.00054794,120]
[321178096,1711945832718,-542.68010447,0.00054794,120]
[321178097,1711945832727,-500.0,0.00054794,120]
[321178098,1711945832737,-336.76436542,0.00054794,120]
[321178099,1711945832747,-575.61420727,0.00054794,120]
[321178100,1711945832756,-330.91872909,0.00054794,120]
[321178101,1711945832765,-500.0,0.00054794,120]
[321178102,1711945832775,-542.46281403,0.00054794,120]
[321178103,1711945832784,-536.72203986,0.00054794,120]
[321178104,1711945832794,-535.1612548,0.00054794,120]
[321178105,1711945832804,-526.17323742,0.00054794,120]
[321178106,1711945832813,-282.55723643,0.00054794,120]
[321178107,1711945832822,-509.60622408,0.00054794,120]
[321178108,1711945832832,-533.51296353,0.00054794,120]
[321178109,1711945832842,-517.49878811,0.00054794,120]
[321178110,1711945832852,-646.97750489,0.00054794,120]
[321178111,1711945832862,-500.0,0.00054794,120]
[321178112,1711945832872,-525.12064574,0.00054794,120]
[321178113,1711945832882,-609.92042881,0.00054794,120]
[321178114,1711945832892,-543.29183728,0.00054794,120]
[321178115,1711945832902,-567.72826631,0.00054794,120]
[321178116,1711945832911,-521.6751404,0.00054794,120]
[321178117,1711945832921,-540.71787886,0.00054794,120]
[321178118,1711945832931,-558.12739504,0.00054794,120]
[321178119,1711945832940,-548.09457796,0.00054794,120]
[321178120,1711945832949,-553.96954671,0.00054794,120]
[321178121,1711945832959,-545.98861081,0.00054794,120]
[321178122,1711945832968,-527.73554316,0.00054794,120]
[321178123,1711945832978,-526.70617785,0.00054794,120]
[321178124,1711945832988,-522.05075238,0.00054794,120]
[321178125,1711945832998,-525.57269481,0.00054794,120]
[321178126,1711945833007,-581.27365988,0.00054794,120]
[321178127,1711945833017,-500.0,0.00054794,120]
[321178128,1711945833027,-1038.26989751,0.00054794,120]
[321178129,1711945833036,-559.58922593,0.00054794,120]
[321178130,1711945833046,-559.52250363,0.00054794,120]
[321178131,1711945833055,-554.37497888,0.00054794,120]
[321178132,1711945833065,-500.0,0.00054794,120]
[321178133,1711945833075,-448.84210552,0.00054794,120]
[321178134,1711945833085,-500.0,0.00054794,120]
[321178135,1711945833094,-527.65249963,0.00054794,120]
[321178136,1711945833108,-541.21190381,0.00054794,120]
[321178137,1711945833117,-540.31241306,0.00054794,120]
[321178138,1711945833127,-542.356759,0.00054794,120]
[321178139,1711945833136,-559.10414848,0.00054794,120]
[321178140,1711945833146,-514.20088095,0.00054794,120]
[321178141,1711945833157,-511.9851706,0.00054794,120]
[321178142,1711945833167,-531.9652793,0.00054794,120]
[321178143,1711945833176,-577.68948451,0.00054794,120]
[321178144,1711945833185,-558.73047786,0.00054794,120]
[321178145,1711945833194,-203.83311297,0.00054794,120]
[321178146,1711945833203,-551.04212281,0.00054794,120]
[321178147,1711945833212,-543.39359232,0.00054794,120]
[321178148,1711945833222,-528.94677347,0.00054794,120]
[321178149,1711945833232,-541.0817301,0.00054794,120]
[321178150,1711945833241,-500.0,0.00054794,120]
[321178151,1711945833251,-533.39939278,0.00054794,120]
[321178152,1711945833260,-530.93720379,0.00054794,120]
[321178153,1711945833269,-565.03459925,0.00054794,120]
[321178154,1711945833279,-540.63451854,0.00054794,120]
[321178155,1711945833288,-500.0,0.00054794,120]
[321178156,1711945833297,-543.07427412,0.00054794,120]
[321178157,1711945833306,-504.32928606,0.00054794,120]
[321178158,1711945833315,-500.0,0.00054794,120]
[321178159,1711945833325,-571.65551764,0.00054794,120]
[321178160,1711945833334,-500.0,0.00054794,120]
[321178161,1711945833343,-500.0,0.00054794,120]
[321178162,1711945833352,-316.01567049,0.00054794,120]
[321178163,1711945833361,-500.0,0.00054794,120]
[321178164,1711945833371,-545.25,0.00054794,120]
[321178165,1711945833380,-528.46,0.00054794,120]
[321178166,1711945833389,-500.0,0.00054794,120]
[321178167,1711945833398,-500.0,0.00054794,120]
[321178168,1711945833408,-500.0,0.00054794,120]
[321178169,1711945833417,-565.37326108,0.00054794,120]
[321178170,1711945833426,-648.17,0.00054794,120]
[321178171,1711945833435,-189.41,0.00054794,120]
[321178172,1711945833445,-524.55376469,0.00054794,120]
[321178173,1711945833454,-570.31,0.00054794,120]
[321178174,1711945833463,-500.0,0.00054794,120]
[321178175,1711945833473,-500.0,0.00054794,120]
[321178176,1711945833482,-580.80109577,0.00054794,120]
[321178177,1711945833491,-1428.09,0.00054794,120]
[321178178,1711945833500,-500.0,0.00054794,120]
[321178179,1711945833510,-652.92,0.00054794,120]
[321178180,1711945833519,-469.77159105,0.00054794,120]
[321178181,1711945833528,-1261.26,0.00054794,120]
[321178182,1711945833733,-517.33073388,0.00054794,120]
[321178183,1711945833742,-817.88,0.00054794,120]
[321178184,1711945833753,-500.0,0.00054794,120]
[321178185,1711945833763,-516.82617157,0.00054794,120]
[321178186,1711945833772,-557.74476905,0.00054794,120]
[321178187,1711945833781,-599.27677911,0.00054794,120]
[321178188,1711945833791,-500.0,0.00054794,120]
[321178189,1711945833802,-500.0,0.00054794,120]
[321178190,1711945833813,-598.65447446,0.00054794,120]
[321178191,1711945833824,-186.05992786,0.00054794,120]
[321178192,1711945833834,-500.0,0.00054794,120]
[321178193,1711945833844,-500.0,0.00054794,120]
[321178194,1711945833853,-500.0,0.00054794,120]
[321178195,1711945833862,-500.0,0.00054794,120]
[321178196,1711945833872,-524.15,0.00054794,120]
[321178197,1711945833881,-500.0,0.00054794,120]
[321178198,1711945833891,-500.0,0.00054794,120]
[321178199,1711945833902,-500.0,0.00054794,120]
[321178200,1711945833911,-500.0,0.00054794,120]
[321178201,1711945833921,-500.0,0.00054794,120]
[321178202,1711945833930,-520.68183094,0.00054794,120]
[321178203,1711945833940,-3434.35,0.00054794,120]
[321178204,1711945833949,-500.0,0.00054794,120]
[321178205,1711945833958,-500.0,0.00054794,120]
[321178206,1711945833967,-500.0,0.00054794,120]
[321178207,1711945833977,-500.0,0.00054794,120]
[321178208,1711945833986,-589.91419204,0.00054794,120]
[321178209,1711945833995,-500.0,0.00054794,120]
[321178210,1711945834004,-500.0,0.00054794,120]
[321178211,1711945834013,-711.59,0.00054794,120]
[321178212,1711945834022,-500.0,0.00054794,120]
[321178213,1711945834031,-500.0,0.00054794,120]
[321178214,1711945834040,-643.72659796,0.00054794,120]
[321178215,1711945834049,-176.14,0.00054794,120]
[321178216,1711945834058,-500.0,0.00054794,120]
[321178217,1711945834067,-500.0,0.00054794,120]
[321178218,1711945834076,-500.0,0.00054794,120]
[321178219,1711945834085,-500.0,0.00054794,120]
[321178220,1711945834094,-500.0,0.00054794,120]
[321178221,1711945834103,-887.67,0.00054794,120]
[321178222,1711945834112,-500.0,0.00054794,120]
[321178223,1711945834125,-461.92070834,0.00054794,120]
[321178224,1711945834134,-520.65562499,0.00054794,120]
[321178225,1711945834144,-707.38,0.00054794,120]
[321178226,1711945834154,-500.0,0.00054794,120]
[321178227,1711945834163,-500.0,0.00054794,120]
[321178228,1711945834172,-500.0,0.00054794,120]
[321178229,1711945834181,-500.0,0.00054794,120]
[321178230,1711945834191,-500.0,0.00054794,120]
[321178231,1711945834201,-458.53441048,0.00054794,120]
[321178232,1711945834210,-500.0,0.00054794,120]
[321178233,1711945834219,-936.2,0.00054794,120]
[321178234,1711945834229,-3065.46,0.00054794,120]
[321178235,1711945834238,-500.0,0.00054794,120]
[321178236,1711945834247,-524.93359026,0.00054794,120]
[321178237,1711945834256,-500.0,0.00054794,120]
[321178238,1711945834266,-500.0,0.00054794,120]
[321178239,1711945834275,-500.0,0.00054794,120]
[321178240,1711945834284,-500.0,0.00054794,120]
[321178241,1711945834294,-500.0,0.00054794,120]
[321178242,1711945834303,-500.0,0.00054794,120]
[321178243,1711945834313,-500.0,0.00054794,120]
[321178244,1711945834322,-500.0,0.00054794,120]
[321178245,1711945834331,-538.48212748,0.00054794,120]
[321178246,1711945834341,-1076.96,0.00054794,120]
[321178247,1711945834350,-392.1987782,0.00054794,120]
[321178248,1711945834360,-557.46055509,0.00054794,120]
[321178249,1711945834369,-500.0,0.00054794,120]
[321178250,1711945834379,-500.0,0.00054794,120]
[321178251,1711945834388,-500.0,0.00054794,120]
[321178252,1711945834397,-752.98,0.00054794,120]
[321178253,1711945834408,-500.0,0.00054794,120]
[321178254,1711945834417,-500.0,0.00054794,120]
[321178255,1711945834427,-2327.12,0.00054794,120]
[321178256,1711945834437,-500.0,0.00054794,120]
[321178257,1711945834446,-330.25183159,0.00054794,120]
[321178258,1711945834455,-532.41861726,0.00054794,120]
[321178259,1711945834464,-500.0,0.00054794,120]
[321178260,1711945834473,-500.0,0.00054794,120]
[321178261,1711945834482,-500.0,0.00054794,120]
[321178262,1711945834491,-500.0,0.00054794,120]
[321178263,1711945834501,-500.0,0.00054794,120]
[321178264,1711945834509,-1379.9,0.00054794,120]
[321178265,1711945834518,-500.0,0.00054794,120]
[321178266,1711945834528,-500.0,0.00054794,120]
[321178267,1711945834537,-500.0,0.00054794,120]
[321178268,1711945834546,-500.0,0.00054794,120]
[321178269,1711945834555,-500.0,0.00054794,120]
[321178270,1711945834564,-500.0,0.00054794,120]
[321178271,1711945834573,-474.21,0.00054794,120]
[321178272,1711945834582,-500.0,0.00054794,120]
[321178273,1711945834591,-500.0,0.00054794,120]
[321178274,1711945834600,-500.0,0.00054794,120]
[321178275,1711945834609,-538.71387188,0.00054794,120]
[321178276,1711945834618,-929.99,0.00054794,120]
[321178277,1711945834627,-500.0,0.00054794,120]
[321178278,1711945834636,-268.08,0.00054794,120]
[321178279,1711945834645,-2759.74,0.00054794,120]
[321178280,1711945834656,-787.3,0.00054794,21]
[321178281,1711945834665,-2284.65,0.00054794,120]
[321178282,1711945834674,-500.0,0.00054794,120]
[321178283,1711945834683,-500.0,0.00054794,120]
[321178284,1711945834692,-500.0,0.00054794,120]
[321178285,1711945834702,-690.79,0.00054794,120]
[321178286,1711945834715,-500.0,0.00054794,120]
[321178287,1711945834723,-521.6439412,0.00054794,120]
[321178288,1711945834733,-500.0,0.00054794,120]
[321178289,1711945834742,-500.0,0.00054794,120]
[321178290,1711945834751,-507.38349193,0.00054794,120]
[321178291,1711945834760,-500.0,0.00054794,120]
[321178292,1711945834769,-623.73533698,0.00054794,120]
[321178293,1711945834778,-500.0,0.00054794,120]
[321178294,1711945834788,-500.0,0.00054794,120]
[321178295,1711945834797,-840.47,0.00054794,120]
[321178296,1711945834806,-702.95,0.00054794,120]
[321178297,1711945834815,-500.0,0.00054794,120]
[321178298,1711945834824,-500.0,0.00054794,120]
[321178299,1711945834834,-500.0,0.00054794,120]
[321178300,1711945834843,-500.0,0.00054794,120]
[321178301,1711945834853,-500.0,0.00054794,120]
[321178302,1711945834861,-624.41,0.00054794,120]
[321178303,1711945834870,-500.0,0.00054794,120]
[321178304,1711945834880,-500.0,0.00054794,2]
[321178305,1711945834889,-1226.31,0.00054794,120]
[321178306,1711945834898,-196.72289309,0.00054794,120]
[321178307,1711945834908,-500.0,0.00054794,120]
[321178308,1711945834918,-500.0,0.00054794,120]
[321178309,1711945834927,-500.0,0.00054794,120]
[321178310,1711945834936,-500.0,0.00054794,120]
[321178311,1711945834947,-500.0,0.00054794,120]
[321178312,1711945834956,-500.0,0.00054794,120]
[321178313,1711945834965,-1575.71,0.00054794,120]
[321178314,1711945834974,-500.0,0.00054794,120]
[321178315,1711945834983,-500.0,0.00054794,120]
[321178316,1711945834992,-500.0,0.00054794,120]
[321178317,1711945835001,-2216.82,0.00054794,120]
[321178318,1711945835010,-500.0,0.00054794,120]
[321178319,1711945835019,-500.0,0.00054794,120]
[321178320,1711945835029,-500.0,0.00054794,120]
[321178321,1711945835038,-500.0,0.00054794,120]
[321178322,1711945835047,-456.99604266,0.00054794,120]
[321178328,1711945837902,-2399.44,0.00054784,10]
[321178329,1711945837911,-109.10018876,0.00054794,120]
[321178330,1711945837921,-175.32070231,0.00054794,120]
[321178346,1711945842076,-259.71099905,0.00054794,120]
[321178428,1711945843361,-856.80955044,0.00054793,120]
[321178430,1711945843370,-64.96829864,0.00054794,120]
[321178432,1711945843379,-500.0,0.00054794,120]
[321178434,1711945843388,-500.0,0.00054794,120]
[321178436,1711945843397,-550.74,0.00054794,120]
[321178438,1711945843406,-500.0,0.00054794,120]
[321178440,1711945843416,-500.0,0.00054794,120]
[321178442,1711945843425,-500.0,0.00054794,120]
[321178444,1711945843434,-500.0,0.00054794,120]
[321178446,1711945843443,-500.0,0.00054794,120]
[321178448,1711945843453,-500.0,0.00054794,120]
[321178450,1711945843462,-500.0,0.00054794,120]
[321178452,1711945843471,-500.0,0.00054794,120]
[321178453,1711945843481,-500.0,0.00054794,120]
[321178455,1711945843491,-500.0,0.00054794,120]
[321178457,1711945843501,-500.0,0.00054794,120]
[321178459,1711945843510,-500.0,0.00054794,120]
[321178461,1711945843520,-268.26458113,0.00054794,120]
[321178463,1711945843530,-500.0,0.00054794,120]
[321178465,1711945843539,-541.36208339,0.00054794,120]
[321178467,1711945843548,-500.0,0.00054794,120]
[321178469,1711945843557,-500.0,0.00054794,120]
[321178471,1711945843566,-500.0,0.00054794,120]
[321178473,1711945843576,-580.43,0.00054794,120]
[321178474,1711945843585,-500.0,0.00054794,120]
[321178475,1711945843594,-500.0,0.00054794,120]
[321178476,1711945843604,-500.0,0.00054794,120]
[321178477,1711945843613,-515.25966746,0.00054794,120]
[321178478,1711945843622,-520.34025802,0.00054794,120]
[321178479,1711945843631,-500.0,0.00054794,120]
[321178480,1711945843641,-500.0,0.00054794,120]
[321178481,1711945843650,-1203.99,0.00054794,120]
[321178482,1711945843660,-500.0,0.00054794,120]
[321178483,1711945843669,-500.0,0.00054794,120]
[321178484,1711945843679,-500.0,0.00054794,120]
[321178485,1711945843688,-181.58,0.00054794,120]
[321178486,1711945843697,-500.0,0.00054794,120]
[321178487,1711945843709,-500.0,0.00054794,120]
[321178488,1711945843718,-500.0,0.00054794,120]
[321178489,1711945843727,-500.0,0.00054794,120]
[321178490,1711945843736,-500.0,0.00054794,120]
[321178491,1711945843747,-500.0,0.00054794,120]
[321178492,1711945843756,-500.0,0.00054794,120]
[321178493,1711945843765,-500.0,0.00054794,120]